[Event "*** Titled Tuesday Blitz"]
[Site "Chess.com"]
[Date "2018.10.02"]
[Round "1"]
[White "017290"]
[Black "JSPrepz"]
[Result "1-0"]
[WhiteElo "2623"]
[BlackElo "2531"]
[TimeControl "180+2"]
[EndTime "13:10:19 PDT"]
[Termination "017290 won by checkmate"]

1. e4 {[%clk 0:02:54.2]} 1... e5 {[%clk 0:02:28.4]} 2. Nf3 {[%clk 0:02:49.3]}
2... Nc6 {[%clk 0:02:29.5]} 3. d4 {[%clk 0:02:48.7]} 3... exd4 {[%clk
0:02:29.8]} 4. Bc4 {[%clk 0:02:49.6]} 4... Nf6 {[%clk 0:02:30.7]} 5. O-O {[%clk
0:02:48.5]} 5... Nxe4 {[%clk 0:02:31.5]} 6. Re1 {[%clk 0:02:49.8]} 6... d5
{[%clk 0:02:32.5]} 7. Bxd5 {[%clk 0:02:50.9]} 7... Qxd5 {[%clk 0:02:34.4]} 8.
Nc3 {[%clk 0:02:50.7]} 8... Qh5 {[%clk 0:02:34.7]} 9. Nxe4 {[%clk 0:02:50.9]}
9... Be6 {[%clk 0:02:35.1]} 10. Bg5 {[%clk 0:02:51.9]} 10... h6 {[%clk
0:02:26.6]} 11. Bf6 {[%clk 0:02:49.9]} 11... Qg6 {[%clk 0:02:25.5]} 12. Bxd4
{[%clk 0:02:41.7]} 12... O-O-O {[%clk 0:02:23.7]} 13. c3 {[%clk 0:02:39.8]}
13... Bd5 {[%clk 0:02:19.8]} 14. Ng3 {[%clk 0:02:28.9]} 14... Nxd4 {[%clk
0:02:18]} 15. cxd4 {[%clk 0:01:55]} 15... h5 {[%clk 0:02:17.8]} 16. Rc1 {[%clk
0:01:42.8]} 16... h4 {[%clk 0:02:16.3]} 17. Ne5 {[%clk 0:01:42.3]} 17... Qh7
{[%clk 0:01:54.4]} 18. Nf1 {[%clk 0:01:08.6]} 18... f6 {[%clk 0:01:54.5]} 19.
Qg4+ {[%clk 0:01:05.1]} 19... f5 {[%clk 0:01:43.9]} 20. Qf4 {[%clk 0:00:58.7]}
20... g5 {[%clk 0:01:41.2]} 21. Qd2 {[%clk 0:00:48.8]} 21... Bd6 {[%clk
0:01:34.7]} 22. Qa5 {[%clk 0:00:46.1]} 22... Bxe5 {[%clk 0:01:11.5]} 23. Rxe5
{[%clk 0:00:39.5]} 23... h3 {[%clk 0:01:00.8]} 24. Rxd5 {[%clk 0:00:37]} 24...
hxg2 {[%clk 0:00:58.4]} 25. Kxg2 {[%clk 0:00:24.1]} 25... f4 {[%clk 0:00:53.8]}
26. Rxc7+ {[%clk 0:00:19]} 26... Qxc7 {[%clk 0:00:48.4]} 27. Rc5 {[%clk
0:00:20.1]} 27... Qxc5 {[%clk 0:00:49.3]} 28. Qxc5+ {[%clk 0:00:22]} 28... Kb8
{[%clk 0:00:50.4]} 29. Nd2 {[%clk 0:00:22.2]} 29... Ka8 {[%clk 0:00:47.7]} 30.
Ne4 {[%clk 0:00:21.4]} 30... g4 {[%clk 0:00:49.1]} 31. Nf6 {[%clk 0:00:21.5]}
31... f3+ {[%clk 0:00:44.4]} 32. Kg3 {[%clk 0:00:22.3]} 32... Rh3+ {[%clk
0:00:42.3]} 33. Kxg4 {[%clk 0:00:23.1]} 33... Rxh2 {[%clk 0:00:44.2]} 34. Kxf3
{[%clk 0:00:24.3]} 34... Rh6 {[%clk 0:00:42.2]} 35. Nd5 {[%clk 0:00:24.6]} 35...
Rh3+ {[%clk 0:00:41.4]} 36. Ke2 {[%clk 0:00:25.4]} 36... Re8+ {[%clk 0:00:42.5]}
37. Kd2 {[%clk 0:00:25.9]} 37... Rd8 {[%clk 0:00:43.4]} 38. Nc7+ {[%clk
0:00:26.9]} 38... Kb8 {[%clk 0:00:44]} 39. Qe5 {[%clk 0:00:28.8]} 39... Kc8
{[%clk 0:00:23.5]} 40. Nb5 {[%clk 0:00:27.8]} 40... Rh7 {[%clk 0:00:22.1]} 41.
Nxa7+ {[%clk 0:00:28.4]} 41... Kd7 {[%clk 0:00:23.4]} 42. Nb5 {[%clk 0:00:29.7]}
42... Re7 {[%clk 0:00:22.8]} 43. Qf5+ {[%clk 0:00:30.9]} 43... Ke8 {[%clk
0:00:21.2]} 44. Kc3 {[%clk 0:00:31.1]} 44... b6 {[%clk 0:00:22.5]} 45. Qg6+
{[%clk 0:00:31.5]} 45... Kf8 {[%clk 0:00:21.8]} 46. Qf6+ {[%clk 0:00:32.9]}
46... Ke8 {[%clk 0:00:21.6]} 47. Qc6+ {[%clk 0:00:33.4]} 47... Kf8 {[%clk
0:00:22.1]} 48. d5 {[%clk 0:00:35]} 48... Rf7 {[%clk 0:00:22.2]} 49. Qxb6 {[%clk
0:00:34.3]} 49... Rxd5 {[%clk 0:00:19.2]} 50. Qb8+ {[%clk 0:00:35.3]} 50... Kg7
{[%clk 0:00:19.7]} 51. Qg3+ {[%clk 0:00:36.4]} 51... Kf8 {[%clk 0:00:20.8]} 52.
Nd6 {[%clk 0:00:35.6]} 52... Rc7+ {[%clk 0:00:21]} 53. Kb4 {[%clk 0:00:36.5]}
53... Rd4+ {[%clk 0:00:21.9]} 54. Kb5 {[%clk 0:00:37.4]} 54... Rd5+ {[%clk
0:00:23]} 55. Kb6 {[%clk 0:00:38.6]} 55... Rdc5 {[%clk 0:00:24.2]} 56. Qf3+
{[%clk 0:00:38.4]} 56... Kg8 {[%clk 0:00:25.4]} 57. b4 {[%clk 0:00:39.7]} 57...
Rc2 {[%clk 0:00:25.5]} 58. a4 {[%clk 0:00:40.4]} 58... Rd7 {[%clk 0:00:24.5]}
59. Qg4+ {[%clk 0:00:39.5]} 59... Kh8 {[%clk 0:00:25.7]} 60. Qh5+ {[%clk
0:00:40.1]} 60... Kg7 {[%clk 0:00:25.4]} 61. Qg5+ {[%clk 0:00:40.9]} 61... Kh8
{[%clk 0:00:26.2]} 62. Qf6+ {[%clk 0:00:41.9]} 62... Kh7 {[%clk 0:00:25.9]} 63.
Qf5+ {[%clk 0:00:43.1]} 63... Kh6 {[%clk 0:00:27.1]} 64. Qxc2 {[%clk 0:00:42.9]}
64... Kg7 {[%clk 0:00:18.5]} 65. Qc6 {[%clk 0:00:44.8]} 65... Re7 {[%clk
0:00:18.5]} 66. Nf5+ {[%clk 0:00:45.2]} 66... Kh8 {[%clk 0:00:17]} 67. Nxe7
{[%clk 0:00:47.1]} 67... Kh7 {[%clk 0:00:18.3]} 68. Qg6+ {[%clk 0:00:47.8]}
68... Kh8 {[%clk 0:00:20.2]} 69. Qg8# {[%clk 0:00:49.7]} 1-0

[Event "*** Titled Tuesday Blitz"]
[Site "Chess.com"]
[Date "2018.10.02"]
[Round "1"]
[White "akretchetov"]
[Black "TrimitziosP7"]
[Result "1-0"]
[WhiteElo "2283"]
[BlackElo "2564"]
[TimeControl "180+2"]
[EndTime "13:10:34 PDT"]
[Termination "akretchetov won by checkmate"]

1. d4 {[%clk 0:03:00.2]} 1... Nf6 {[%clk 0:02:59.3]} 2. c4 {[%clk 0:03:00.1]}
2... g6 {[%clk 0:02:59.3]} 3. Nc3 {[%clk 0:02:59.6]} 3... Bg7 {[%clk 0:02:59.9]}
4. e4 {[%clk 0:03:00.1]} 4... d6 {[%clk 0:03:00]} 5. Nf3 {[%clk 0:03:01.2]} 5...
O-O {[%clk 0:02:57.4]} 6. h3 {[%clk 0:03:01.8]} 6... e5 {[%clk 0:02:57.1]} 7. d5
{[%clk 0:03:02]} 7... a5 {[%clk 0:02:57.1]} 8. g4 {[%clk 0:03:01.5]} 8... Na6
{[%clk 0:02:54.2]} 9. Be3 {[%clk 0:02:59.7]} 9... b6 {[%clk 0:02:49.8]} 10. Rg1
{[%clk 0:02:57.7]} 10... Nc5 {[%clk 0:02:46.6]} 11. Nd2 {[%clk 0:02:58.4]} 11...
Kh8 {[%clk 0:02:31.4]} 12. Qc2 {[%clk 0:02:57.3]} 12... Ng8 {[%clk 0:02:25.1]}
13. Be2 {[%clk 0:02:30.1]} 13... Ne7 {[%clk 0:02:22.7]} 14. O-O-O {[%clk
0:02:25.8]} 14... f5 {[%clk 0:02:14.6]} 15. f3 {[%clk 0:02:18.1]} 15... f4
{[%clk 0:02:14.1]} 16. Bf2 {[%clk 0:02:19]} 16... Bd7 {[%clk 0:02:11]} 17. h4
{[%clk 0:02:19.6]} 17... h6 {[%clk 0:02:07]} 18. b3 {[%clk 0:02:13.3]} 18... Qe8
{[%clk 0:01:58.4]} 19. Kb1 {[%clk 0:02:10.8]} 19... Kg8 {[%clk 0:01:55.7]} 20.
Ka1 {[%clk 0:01:57.4]} 20... Na6 {[%clk 0:01:55.6]} 21. a3 {[%clk 0:01:52.4]}
21... Nc5 {[%clk 0:01:51.9]} 22. Kb2 {[%clk 0:01:50.3]} 22... Kf7 {[%clk
0:01:50.8]} 23. Ra1 {[%clk 0:01:49.7]} 23... Kg8 {[%clk 0:01:36.6]} 24. Rgb1
{[%clk 0:01:50.1]} 24... Bf6 {[%clk 0:01:32.2]} 25. Qd1 {[%clk 0:01:47.8]} 25...
g5 {[%clk 0:01:29.6]} 26. h5 {[%clk 0:01:45.5]} 26... Kg7 {[%clk 0:01:29.4]} 27.
Qc2 {[%clk 0:01:46.1]} 27... Qf7 {[%clk 0:01:28.6]} 28. Kc1 {[%clk 0:01:47]}
28... Rfb8 {[%clk 0:01:28.3]} 29. Kd1 {[%clk 0:01:47.6]} 29... Ng8 {[%clk
0:01:28.1]} 30. Ke1 {[%clk 0:01:46.1]} 30... Be7 {[%clk 0:01:28.6]} 31. b4
{[%clk 0:01:45]} 31... Nb7 {[%clk 0:01:28.3]} 32. Nb5 {[%clk 0:01:42.8]} 32...
Bd8 {[%clk 0:01:26]} 33. c5 {[%clk 0:01:22.9]} 33... bxc5 {[%clk 0:01:22]} 34.
bxc5 {[%clk 0:01:23.3]} 34... Nxc5 {[%clk 0:01:23.1]} 35. Bxc5 {[%clk
0:01:23.5]} 35... dxc5 {[%clk 0:01:25]} 36. Qxc5 {[%clk 0:01:15.6]} 36... Bxb5
{[%clk 0:01:01.5]} 37. Bxb5 {[%clk 0:01:11.1]} 37... Be7 {[%clk 0:00:46.3]} 38.
Qc3 {[%clk 0:01:05.7]} 38... Bd6 {[%clk 0:00:42.9]} 39. Bc6 {[%clk 0:01:02.6]}
39... Rxb1+ {[%clk 0:00:43.4]} 40. Rxb1 {[%clk 0:01:03]} 40... Rd8 {[%clk
0:00:41.6]} 41. Nc4 {[%clk 0:01:03.6]} 41... Qe7 {[%clk 0:00:41.7]} 42. Rb7
{[%clk 0:01:01]} 42... Nf6 {[%clk 0:00:41.1]} 43. Qxa5 {[%clk 0:00:56.4]} 43...
Rc8 {[%clk 0:00:40.9]} 44. Nxd6 {[%clk 0:00:51.8]} 44... Qxd6 {[%clk 0:00:42.8]}
45. Qb4 {[%clk 0:00:52.6]} 45... Qd8 {[%clk 0:00:20.5]} 46. a4 {[%clk
0:00:53.3]} 46... Ne8 {[%clk 0:00:10.8]} 47. Bxe8 {[%clk 0:00:47]} 47... Qxe8
{[%clk 0:00:12.7]} 48. Qc3 {[%clk 0:00:40.7]} 48... Qxa4 {[%clk 0:00:11.1]} 49.
Rxc7+ {[%clk 0:00:39.1]} 49... Rxc7 {[%clk 0:00:11.9]} 50. Qxc7+ {[%clk
0:00:39.9]} 50... Kg8 {[%clk 0:00:13.3]} 51. Qd8+ {[%clk 0:00:38.7]} 51... Kf7
{[%clk 0:00:12.2]} 52. Qc7+ {[%clk 0:00:38.3]} 52... Kg8 {[%clk 0:00:13]} 53.
Qb8+ {[%clk 0:00:36.9]} 53... Kf7 {[%clk 0:00:13.4]} 54. Qb7+ {[%clk 0:00:37.5]}
54... Kg8 {[%clk 0:00:13.5]} 55. Qb2 {[%clk 0:00:36.1]} 55... Qa5+ {[%clk
0:00:13.3]} 56. Ke2 {[%clk 0:00:33.7]} 56... Qa6+ {[%clk 0:00:14.4]} 57. Kd2
{[%clk 0:00:34.4]} 57... Qa7 {[%clk 0:00:13.4]} 58. Qxe5 {[%clk 0:00:26.3]}
58... Qe3+ {[%clk 0:00:13.8]} 59. Kc2 {[%clk 0:00:27.5]} 59... Qe2+ {[%clk
0:00:14.7]} 60. Kb3 {[%clk 0:00:28.3]} 60... Qxf3+ {[%clk 0:00:16]} 61. Kc4
{[%clk 0:00:28.2]} 61... Qe2+ {[%clk 0:00:15.4]} 62. Kc5 {[%clk 0:00:28.6]}
62... Qc2+ {[%clk 0:00:16]} 63. Kd6 {[%clk 0:00:29]} 63... Qa2 {[%clk 0:00:08]}
64. Qe8+ {[%clk 0:00:28.8]} 64... Kg7 {[%clk 0:00:08.7]} 65. Qg6+ {[%clk
0:00:29.7]} 65... Kf8 {[%clk 0:00:09.1]} 66. Qxh6+ {[%clk 0:00:30.9]} 66... Ke8
{[%clk 0:00:10.3]} 67. Qg6+ {[%clk 0:00:30.3]} 67... Kf8 {[%clk 0:00:10.1]} 68.
Qf6+ {[%clk 0:00:31.5]} 68... Ke8 {[%clk 0:00:11.3]} 69. Qe7# {[%clk 0:00:30.6]}
1-0

[Event "*** Titled Tuesday Blitz"]
[Site "Chess.com"]
[Date "2018.10.02"]
[Round "1"]
[White "RiskyDecision"]
[Black "petrpalachev"]
[Result "0-1"]
[WhiteElo "2413"]
[BlackElo "2762"]
[TimeControl "180+2"]
[EndTime "13:10:37 PDT"]
[Termination "petrpalachev won by resignation"]

1. d4 {[%clk 0:02:58.7]} 1... Nf6 {[%clk 0:02:59.9]} 2. c4 {[%clk 0:02:59.2]}
2... e6 {[%clk 0:03:00.8]} 3. g3 {[%clk 0:02:59.8]} 3... d5 {[%clk 0:03:01.5]}
4. Nf3 {[%clk 0:03:00.6]} 4... Bb4+ {[%clk 0:03:02.1]} 5. Bd2 {[%clk 0:03:01.2]}
5... Be7 {[%clk 0:03:03.7]} 6. Bg2 {[%clk 0:03:01.8]} 6... O-O {[%clk
0:03:05.2]} 7. O-O {[%clk 0:03:03.4]} 7... Nbd7 {[%clk 0:03:06.7]} 8. Qc2 {[%clk
0:03:03.6]} 8... c6 {[%clk 0:03:07.4]} 9. b3 {[%clk 0:03:03.5]} 9... a5 {[%clk
0:03:07.5]} 10. Nc3 {[%clk 0:03:01.3]} 10... b6 {[%clk 0:03:04.3]} 11. e4 {[%clk
0:02:55.8]} 11... Ba6 {[%clk 0:03:01.3]} 12. e5 {[%clk 0:02:10.1]} 12... Ne8
{[%clk 0:03:01.7]} 13. Nd1 {[%clk 0:02:11.5]} 13... Rc8 {[%clk 0:03:00.1]} 14.
Ne3 {[%clk 0:02:11.1]} 14... c5 {[%clk 0:02:57.2]} 15. dxc5 {[%clk 0:02:05.5]}
15... dxc4 {[%clk 0:02:55.4]} 16. Nxc4 {[%clk 0:02:01.4]} 16... Nxc5 {[%clk
0:02:37.4]} 17. Rfd1 {[%clk 0:01:51]} 17... Qc7 {[%clk 0:02:33.4]} 18. Ng5
{[%clk 0:01:42.8]} 18... g6 {[%clk 0:02:10.9]} 19. h4 {[%clk 0:01:34]} 19... Ng7
{[%clk 0:02:11.6]} 20. Bf4 {[%clk 0:01:27.4]} 20... Bxc4 {[%clk 0:01:44.6]} 21.
Qxc4 {[%clk 0:01:23.8]} 21... Rfd8 {[%clk 0:01:46.5]} 22. Qe2 {[%clk 0:01:13.2]}
22... Rxd1+ {[%clk 0:01:38.8]} 23. Rxd1 {[%clk 0:01:13.5]} 23... Rd8 {[%clk
0:01:40.7]} 24. Qf3 {[%clk 0:01:03]} 24... Rxd1+ {[%clk 0:01:40.4]} 25. Qxd1
{[%clk 0:01:04.9]} 25... Nf5 {[%clk 0:01:37.5]} 26. h5 {[%clk 0:00:47.7]} 26...
Qd8 {[%clk 0:01:34.3]} 27. Qxd8+ {[%clk 0:00:38.7]} 27... Bxd8 {[%clk
0:01:36.2]} 28. hxg6 {[%clk 0:00:38.2]} 28... hxg6 {[%clk 0:01:38.1]} 29. Ne4
{[%clk 0:00:30.5]} 29... Nd3 {[%clk 0:01:38.9]} 30. Kf1 {[%clk 0:00:21.1]} 30...
Nxf4 {[%clk 0:01:37.5]} 31. gxf4 {[%clk 0:00:23]} 31... b5 {[%clk 0:01:36.2]}
32. Ke2 {[%clk 0:00:22]} 32... b4 {[%clk 0:01:36.7]} 33. Kd3 {[%clk 0:00:22.3]}
33... Bb6 {[%clk 0:01:37.6]} 34. Bh3 {[%clk 0:00:22.8]} 34... Nd4 {[%clk
0:01:29.1]} 35. Nf6+ {[%clk 0:00:20.8]} 35... Kg7 {[%clk 0:01:28.2]} 36. Nd7
{[%clk 0:00:21.5]} 36... Ba7 {[%clk 0:01:27.6]} 37. Bg2 {[%clk 0:00:22.3]} 37...
Nb5 {[%clk 0:01:26.7]} 38. Bc6 {[%clk 0:00:19.4]} 38... Nc3 {[%clk 0:01:27.2]}
39. a3 {[%clk 0:00:18.7]} 39... Bxf2 {[%clk 0:01:27.7]} 40. axb4 {[%clk
0:00:19.2]} 40... axb4 {[%clk 0:01:29.6]} 41. Kc4 {[%clk 0:00:17.8]} 41... Na2
{[%clk 0:01:29.4]} 42. Nc5 {[%clk 0:00:08.8]} 42... Be3 {[%clk 0:01:00.6]} 43.
Nd3 {[%clk 0:00:09.4]} 43... Bd2 {[%clk 0:01:01.9]} 44. Be4 {[%clk 0:00:08.9]}
44... Nc3 {[%clk 0:00:59.6]} 45. Bc6 {[%clk 0:00:08.5]} 45... Ne2 {[%clk
0:00:59.3]} 46. Nxb4 {[%clk 0:00:09.4]} 46... Nxf4 {[%clk 0:01:00.4]} 47. Nd3
{[%clk 0:00:07.3]} 47... g5 {[%clk 0:00:24.3]} 48. Nxf4 {[%clk 0:00:07.2]} 48...
Bxf4 {[%clk 0:00:24.9]} 49. Kd4 {[%clk 0:00:07.4]} 49... Bd2 {[%clk 0:00:25.9]}
50. Kc4 {[%clk 0:00:06.5]} 50... Kg6 {[%clk 0:00:24.4]} 51. b4 {[%clk
0:00:06.6]} 51... Kf5 {[%clk 0:00:24.4]} 52. Be8 {[%clk 0:00:07.3]} 52... g4
{[%clk 0:00:22.3]} 53. b5 {[%clk 0:00:04.8]} 53... g3 {[%clk 0:00:17.3]} 54. Bc6
{[%clk 0:00:04.9]} 54... Be3 {[%clk 0:00:17.8]} 55. Kd3 {[%clk 0:00:05.9]} 55...
Bb6 {[%clk 0:00:18.1]} 56. Ke2 {[%clk 0:00:05.3]} 56... Kxe5 {[%clk 0:00:18.3]}
57. Kf3 {[%clk 0:00:07]} 57... Bf2 {[%clk 0:00:19.6]} 58. Be8 {[%clk 0:00:07.5]}
58... f5 {[%clk 0:00:20]} 59. b6 {[%clk 0:00:08.9]} 59... Bxb6 {[%clk
0:00:16.9]} 60. Kxg3 {[%clk 0:00:10.1]} 60... Kf6 {[%clk 0:00:15.9]} 61. Bd7
{[%clk 0:00:10.6]} 61... e5 {[%clk 0:00:17]} 62. Kf3 {[%clk 0:00:11.4]} 62...
e4+ {[%clk 0:00:18.3]} 63. Ke2 {[%clk 0:00:12.3]} 63... f4 {[%clk 0:00:17.9]}
64. Bh3 {[%clk 0:00:11.2]} 64... f3+ {[%clk 0:00:18]} 65. Ke1 {[%clk 0:00:10.8]}
65... e3 {[%clk 0:00:18.1]} 66. Bg4 {[%clk 0:00:10.1]} 66... Ba5+ {[%clk
0:00:17.7]} 67. Kf1 {[%clk 0:00:10.3]} 67... e2+ {[%clk 0:00:19.2]} 68. Kf2
{[%clk 0:00:11.7]} 68... e1=Q+ {[%clk 0:00:21.1]} 0-1

[Event "*** Titled Tuesday Blitz"]
[Site "Chess.com"]
[Date "2018.10.02"]
[Round "1"]
[White "evgenysharapov"]
[Black "David_Paravyan"]
[Result "0-1"]
[WhiteElo "2450"]
[BlackElo "2827"]
[TimeControl "180+2"]
[EndTime "13:10:48 PDT"]
[Termination "David_Paravyan won by resignation"]

1. e4 {[%clk 0:02:57.6]} 1... e5 {[%clk 0:02:58.5]} 2. Nf3 {[%clk 0:02:57.6]}
2... Nc6 {[%clk 0:02:59.8]} 3. Bb5 {[%clk 0:02:57.5]} 3... g6 {[%clk 0:03:01.2]}
4. O-O {[%clk 0:02:57.4]} 4... Bg7 {[%clk 0:03:02.2]} 5. c3 {[%clk 0:02:58.1]}
5... Nge7 {[%clk 0:03:02.7]} 6. d4 {[%clk 0:02:58.5]} 6... exd4 {[%clk
0:03:04.6]} 7. cxd4 {[%clk 0:02:59]} 7... a6 {[%clk 0:03:06.2]} 8. Ba4 {[%clk
0:02:58.6]} 8... b5 {[%clk 0:03:06.7]} 9. Bb3 {[%clk 0:02:58.7]} 9... Na5 {[%clk
0:03:07.8]} 10. Bc2 {[%clk 0:02:58.5]} 10... d6 {[%clk 0:03:09.3]} 11. Nc3
{[%clk 0:02:58.1]} 11... O-O {[%clk 0:03:10.3]} 12. h3 {[%clk 0:02:58.2]} 12...
Bb7 {[%clk 0:03:10.7]} 13. Re1 {[%clk 0:02:54.7]} 13... c5 {[%clk 0:03:10.5]}
14. d5 {[%clk 0:02:28.6]} 14... Nc4 {[%clk 0:03:09.6]} 15. Rb1 {[%clk
0:02:23.7]} 15... h6 {[%clk 0:03:06.3]} 16. Bd3 {[%clk 0:02:20.4]} 16... Nb6
{[%clk 0:03:03.5]} 17. Bf4 {[%clk 0:02:20.4]} 17... g5 {[%clk 0:03:04.3]} 18.
Bg3 {[%clk 0:02:20.9]} 18... Ng6 {[%clk 0:03:03.8]} 19. Qd2 {[%clk 0:02:20.5]}
19... Re8 {[%clk 0:02:55.1]} 20. Rbd1 {[%clk 0:02:20.5]} 20... Qc7 {[%clk
0:02:50.9]} 21. h4 {[%clk 0:02:12.2]} 21... g4 {[%clk 0:02:49.4]} 22. Nh2 {[%clk
0:02:08.6]} 22... Bc8 {[%clk 0:02:46]} 23. h5 {[%clk 0:02:07.6]} 23... Ne5
{[%clk 0:02:47.3]} 24. Bf1 {[%clk 0:01:58.1]} 24... b4 {[%clk 0:02:44.7]} 25.
Ne2 {[%clk 0:01:53.6]} 25... Nec4 {[%clk 0:02:45.1]} 26. Qc2 {[%clk 0:01:49.8]}
26... Nxb2 {[%clk 0:02:45]} 27. Rb1 {[%clk 0:01:49.7]} 27... N2c4 {[%clk
0:02:46.2]} 28. Rb3 {[%clk 0:01:39.7]} 28... Bd7 {[%clk 0:02:46.1]} 29. Nc1
{[%clk 0:01:37]} 29... Ne5 {[%clk 0:02:44.3]} 30. Rxb4 {[%clk 0:01:35]} 30...
Reb8 {[%clk 0:02:38.3]} 31. Be2 {[%clk 0:01:34.1]} 31... Qc8 {[%clk 0:02:36]}
32. Rb1 {[%clk 0:01:32.3]} 32... Na4 {[%clk 0:02:35.2]} 33. Nd3 {[%clk 0:01:31]}
33... Nxd3 {[%clk 0:02:34.4]} 34. Bxd3 {[%clk 0:01:28.4]} 34... Qc7 {[%clk
0:02:32.6]} 35. Be2 {[%clk 0:01:23.8]} 35... Nc3 {[%clk 0:02:32.2]} 36. Rxb8+
{[%clk 0:01:22.9]} 36... Rxb8 {[%clk 0:02:34.1]} 37. Bxg4 {[%clk 0:01:23]} 37...
Ba4 {[%clk 0:02:35.2]} 38. Qd2 {[%clk 0:01:20.1]} 38... Nb1 {[%clk 0:02:19.2]}
39. Qd3 {[%clk 0:01:15.2]} 39... c4 {[%clk 0:02:18.5]} 40. Qe3 {[%clk
0:01:10.8]} 40... c3 {[%clk 0:02:17.8]} 41. Bf4 {[%clk 0:01:08.1]} 41... c2
{[%clk 0:02:15.2]} 42. Bxh6 {[%clk 0:01:07.2]} 42... Qc3 {[%clk 0:02:12.7]} 43.
Qxc3 {[%clk 0:00:56.1]} 43... Nxc3 {[%clk 0:02:04.2]} 44. Bc1 {[%clk 0:00:54.2]}
44... Rb1 {[%clk 0:01:59.9]} 45. Nf3 {[%clk 0:00:52.6]} 45... Nxa2 {[%clk
0:01:56.5]} 46. Bd2 {[%clk 0:00:47.3]} 46... Rxe1+ {[%clk 0:00:21]} 47. Nxe1
{[%clk 0:00:47.1]} 47... Bc3 {[%clk 0:00:21.7]} 48. Nxc2 {[%clk 0:00:40.7]}
48... Bxd2 {[%clk 0:00:22.3]} 49. Nd4 {[%clk 0:00:39]} 49... Nc3 {[%clk
0:00:19.4]} 50. Bf5 {[%clk 0:00:22.5]} 50... Bf4 {[%clk 0:00:20.2]} 51. g3
{[%clk 0:00:23]} 51... Be5 {[%clk 0:00:20.7]} 52. Nc6 {[%clk 0:00:23.1]} 52...
Bxc6 {[%clk 0:00:20.5]} 53. dxc6 {[%clk 0:00:23.3]} 53... Nb5 {[%clk 0:00:22.1]}
54. f4 {[%clk 0:00:23.2]} 54... Bd4+ {[%clk 0:00:22.8]} 55. Kf1 {[%clk
0:00:24.1]} 55... a5 {[%clk 0:00:24.2]} 56. Ke2 {[%clk 0:00:24.9]} 56... a4
{[%clk 0:00:25.4]} 57. e5 {[%clk 0:00:24.8]} 57... dxe5 {[%clk 0:00:23.1]} 58.
Bd3 {[%clk 0:00:25.7]} 58... Na7 {[%clk 0:00:12.8]} 59. c7 {[%clk 0:00:23.2]}
59... a3 {[%clk 0:00:13.9]} 60. Bc4 {[%clk 0:00:22.6]} 60... exf4 {[%clk
0:00:15.1]} 61. g4 {[%clk 0:00:23.4]} 61... Bb6 {[%clk 0:00:15.1]} 62. g5 {[%clk
0:00:24.4]} 62... Kf8 {[%clk 0:00:14.2]} 63. h6 {[%clk 0:00:24.7]} 63... Bxc7
{[%clk 0:00:15.7]} 64. g6 {[%clk 0:00:25.4]} 64... fxg6 {[%clk 0:00:16.6]} 0-1